fUST/lending_fUST_20251115
["ID","MTS","AMOUNT","RATE_DAILY","PERIOD"]
[393994967,1763169042104,-196.781899,0.00033978,31]
[393994968,1763169042113,-151.0,0.00033978,31]
[393994969,1763169042122,-196.781899,0.00033978,31]
[393994970,1763169042132,-151.396938,0.00033978,31]
[393994971,1763169042141,-151.0,0.00033978,31]
[393994972,1763169042151,-151.0,0.00033978,31]
[393994973,1763169042160,-157.680718,0.00033978,31]
[393994974,1763169042169,-151.0,0.00033978,31]
[393994975,1763169042179,-355.35191,0.00033978,31]
[393994976,1763169042188,-355.35191,0.00033978,31]
[393994977,1763169042197,-355.35191,0.00033978,31]
[393994978,1763169042209,-355.35191,0.00033978,31]
[393994979,1763169042221,-152.369349,0.00033978,30]
[393994980,1763169042230,-151.0,0.00033978,31]
[393994981,1763169042239,-151.0,0.00033978,31]
[393994982,1763169042250,-151.0,0.00033978,31]
[393994983,1763169042259,-151.0,0.00033978,31]
[393994984,1763169042268,-151.0,0.00033978,31]
[393994985,1763169042279,-151.0,0.00033978,31]
[393994986,1763169042290,-151.0,0.00033978,31]
[393994987,1763169042299,-151.0,0.00033978,31]
[393994988,1763169042308,-187.765429,0.00033978,7]
[393994989,1763169042318,-187.765429,0.00033978,7]
[393994990,1763169042327,-187.765429,0.00033978,7]
[393994991,1763169042336,-187.765429,0.00033978,7]
[393994992,1763169042345,-151.0,0.00033978,31]
[393994993,1763169042355,-151.0,0.00033978,2]
[393994994,1763169042364,-151.0,0.00033978,31]
[393994995,1763169042373,-151.0,0.00033978,31]
[393994996,1763169042382,-151.0,0.00033978,31]
[393994997,1763169042392,-151.0,0.00033978,31]
[393994998,1763169042401,-151.0,0.00033978,31]
[393994999,1763169042411,-151.0,0.00033978,31]
[393995000,1763169042419,-151.0,0.00033978,31]
[393995001,1763169042429,-151.0,0.00033978,31]
[393995002,1763169042438,-151.0,0.00033978,31]
[393995003,1763169042447,-531.375781,0.00033978,31]
[393995004,1763169042456,-531.375781,0.00033978,31]
[393995005,1763169042465,-151.0,0.00033978,31]
[393995006,1763169042474,-531.375781,0.00033978,31]
[393995007,1763169042483,-469.977544,0.00033978,31]
[393995008,1763169042492,-151.0,0.00033978,31]
[393995009,1763169042501,-469.977544,0.00033978,31]
[393995010,1763169042510,-531.375781,0.00033978,31]
[393995011,1763169042519,-151.0,0.00033978,31]
[393995012,1763169042529,-469.977544,0.00033978,31]
[393995013,1763169042538,-469.977544,0.00033978,31]
[393995014,1763169042547,-161.715733,0.00033978,31]
[393995015,1763169042557,-151.0,0.00033978,31]
[393995016,1763169042566,-151.0,0.00033978,31]
[393995017,1763169042575,-151.0,0.00033978,31]
[393995018,1763169042584,-151.0,0.00033978,31]
[393995019,1763169042593,-2868.729598,0.00033978,31]
[393995020,1763169042602,-158.306047,0.00033978,31]
[393995021,1763169042611,-2868.729598,0.00033978,31]
[393995022,1763169042619,-151.0,0.00033978,31]
[393995023,1763169042629,-2868.729598,0.00033978,31]
[393995024,1763169042637,-151.0,0.00033978,31]
[393995025,1763169042646,-2868.729598,0.00033978,31]
[393995026,1763169042655,-151.0,0.00033978,31]
[393995027,1763169042665,-235.15429,0.00033978,31]
[393995028,1763169042674,-153.742177,0.00033978,31]
[393995029,1763169042683,-151.0,0.00033978,31]
[393995030,1763169042692,-152.375786,0.00033978,31]
[393995031,1763169042701,-151.0,0.00033978,31]
[393995032,1763169042711,-151.0,0.00033978,31]
[393995033,1763169042720,-1253.127483,0.00033978,31]
[393995034,1763169042729,-151.0,0.00033978,31]
[393995035,1763169042738,-1253.127483,0.00033978,31]
[393995036,1763169042750,-151.0,0.00033978,31]
[393995037,1763169042770,-151.0,0.00033978,31]
[393995038,1763169042791,-500.0,0.00034115,7]
[393995039,1763169042809,-500.0,0.00034115,7]
[393995040,1763169042819,-500.0,0.00034252,7]
[393995041,1763169042829,-500.0,0.00034252,7]
[393995042,1763169042839,-152.497617,0.00034252,31]
[393995043,1763169042850,-151.0,0.00034252,31]
[393995044,1763169042859,-151.0,0.00034252,15]
[393995045,1763169042872,-151.0,0.00034252,31]
[393995046,1763169042883,-184.673246,0.00034252,31]
[393995047,1763169042894,-151.0,0.00034252,31]
[393995048,1763169042904,-151.0,0.00034252,31]
[393995049,1763169042914,-500.0,0.00034389,7]
[393995050,1763169042923,-500.0,0.00034389,7]
[393995051,1763169042932,-5000.0,0.00034432,2]
[393995052,1763169042941,-500.0,0.00034526,7]
[393995053,1763169042950,-500.0,0.00034526,7]
[393995054,1763169042961,-151.0,0.00034526,31]
[393995055,1763169042970,-151.0,0.00034526,31]
[393995056,1763169042980,-151.0,0.00034526,31]
[393995057,1763169042990,-151.0,0.00034526,31]
[393995058,1763169043000,-151.0,0.00034526,31]
[393995059,1763169043011,-151.0,0.00034526,31]
[393995060,1763169043022,-151.0,0.00034526,31]
[393995061,1763169043034,-500.0,0.00034663,7]
[393995062,1763169043043,-500.0,0.00034663,7]
[393995063,1763169043052,-500.0,0.000348,7]
[393995064,1763169043061,-500.0,0.000348,7]
[393995065,1763169043070,-312.0,0.00034942,120]
[393995066,1763169043080,-3031.16,0.00035,14]
[393995067,1763169043089,-203.95293294,0.00035,2]
[393995068,1763169043098,-159.0,0.00035,120]
[393995069,1763169043108,-151.0,0.00035,31]
[393995070,1763169043117,-218.595348,0.00035,31]
[393995071,1763169043126,-151.0,0.00035,31]
[393995072,1763169043135,-209.0,0.00035,120]
[393995073,1763169043144,-27863.46305387,0.00035,13]
[393995074,1763169043153,-733.194393,0.00035013,2]
[393995076,1763169043162,-151.0,0.00035211,7]
[393995079,1763169043171,-1000.0,0.00035285,2]
[393995081,1763169043181,-1000.0,0.00035285,2]
[393995083,1763169043189,-1000.0,0.00035285,2]
[393995085,1763169043199,-1000.0,0.00035285,2]
[393995086,1763169043213,-1000.0,0.00035285,2]
[393995087,1763169043222,-1000.0,0.00035285,2]
[393995088,1763169043232,-1000.0,0.00035285,2]
[393995089,1763169043241,-1000.0,0.00035285,2]
[393995090,1763169043251,-1000.0,0.00035285,2]
[393995091,1763169043260,-1000.0,0.00035285,2]
[393995092,1763169043270,-1000.0,0.00035285,2]
[393995093,1763169043281,-175.75382895,0.00035285,2]
[393995094,1763169043291,-1460.15806665,0.0003533,2]
[393995095,1763169043300,-151.0,0.00035616,31]
[393995096,1763169043310,-151.0,0.00035616,31]
[393995097,1763169043320,-151.0,0.00035616,31]
[393995098,1763169043329,-151.0,0.00035616,31]
[393995099,1763169043340,-151.0,0.00035616,31]
[393995100,1763169043350,-151.0,0.00035616,31]
[393995101,1763169043360,-151.0,0.00035857,31]
[393995102,1763169043370,-151.767366,0.00035857,31]
[393995103,1763169043379,-151.0,0.00035857,31]
[393995104,1763169043389,-171.478129,0.00035857,31]
[393995105,1763169043398,-151.0,0.00035857,31]
[393995106,1763169043407,-152.71732,0.00035857,31]
[393995107,1763169043416,-156.906094,0.00035857,31]
[393995108,1763169043427,-154.037957,0.00035857,31]
[393995109,1763169043437,-372.08944435,0.00035896,7]
[393995110,1763169043446,-168.0,0.00036,120]
[393995111,1763169043456,-168.0,0.00036,90]
[393995112,1763169043465,-153.97,0.00036194,60]
[393995113,1763169043475,-172.39,0.00036194,60]
[393995114,1763169043484,-153.97,0.00036294,60]
[393995115,1763169043493,-172.39,0.00036294,60]
[393995116,1763169043502,-12314.00544019,0.00036361,2]
[393995117,1763169043511,-153.97,0.00036394,60]
[393995118,1763169043521,-172.39,0.00036394,60]
[393995119,1763169043533,-412.46483272,0.00036461,2]
[393995120,1763169043543,-738.42275021,0.00036461,2]
[393995121,1763169043552,-648.39482609,0.00036461,2]
[393995122,1763169043563,-153.97,0.00036494,60]
[393995123,1763169043575,-172.39,0.00036494,60]
[393995124,1763169043584,-153.97,0.00036594,60]
[393995125,1763169043594,-172.39,0.00036594,60]
[393995126,1763169043603,-153.97,0.00036694,60]
[393995127,1763169043612,-172.39,0.00036694,60]
[393995128,1763169043621,-153.97,0.00036794,60]
[393995129,1763169043631,-172.39,0.00036794,60]
[393995130,1763169043640,-153.97,0.00036894,60]
[393995131,1763169043649,-172.39,0.00036894,60]
[393995132,1763169043659,-339.0,0.00036942,120]
[393995133,1763169043668,-154.04368634,0.00036994,60]
[393995134,1763169043678,-172.39,0.00036994,60]
[393995135,1763169043687,-161.0,0.00037,10]
[393995136,1763169043697,-161.0,0.00037,10]
[393995137,1763169043706,-168.0,0.00037,120]
[393995138,1763169043715,-173.0,0.00037,90]
[393995139,1763169043724,-172.39,0.00037094,60]
[393995140,1763169043734,-172.39,0.00037194,60]
[393995141,1763169043743,-172.39,0.00037294,60]
[393995142,1763169043753,-172.39,0.00037394,60]
[393995143,1763169043762,-172.39,0.00037494,60]
[393995144,1763169043771,-150.0,0.00037542,2]
[393995145,1763169043784,-224.887,0.00037542,2]
[393995146,1763169043793,-2148.0,0.00037542,2]
[393995147,1763169043803,-629.0,0.00037542,2]
[393995149,1763169043812,-1023.279,0.00037542,2]
[393995150,1763169043821,-1460.15806665,0.00037592,2]
[393995151,1763169043831,-172.39,0.00037594,60]
[393995152,1763169043841,-333.941597,0.00037656,10]
[393995153,1763169043851,-172.39,0.00037694,60]
[393995154,1763169043861,-172.39,0.00037794,60]
[393995156,1763169043871,-200.0,0.000378,2]
[393995157,1763169043880,-172.39,0.00037894,60]
[393995158,1763169043890,-172.39,0.00037994,60]
[393995159,1763169043899,-1149.73,0.00038,15]
[393995160,1763169043908,-172.39,0.00038094,60]
[393995161,1763169043917,-172.39,0.00038194,60]
[393995162,1763169043927,-172.39,0.00038294,60]
[393995163,1763169043936,-3031.16,0.000383,14]
[393995164,1763169043946,-500.0,0.00038356,30]
[393995165,1763169043956,-248.9196951,0.00038356,2]
[393995166,1763169043965,-172.39,0.00038394,120]
[393995167,1763169043975,-172.39,0.00038494,120]
[393995168,1763169043983,-172.39,0.00038594,120]
[393995169,1763169043992,-500.0,0.0003863,30]
[393995170,1763169044002,-172.39,0.00038694,120]
[393995171,1763169044010,-338.43665622,0.00038761,15]
[393995172,1763169044019,-172.39,0.00038794,120]
[393995173,1763169044032,-172.39,0.00038894,120]
[393995174,1763169044041,-168.0,0.000389,120]
[393995175,1763169044051,-500.0,0.00038904,30]
[393995176,1763169044060,-270.7,0.0003892,10]
[393995177,1763169044223,-1000.0,0.00038923,10]
[393995178,1763169044233,-1477.0,0.00038929,10]
[393995179,1763169044244,-5888.0,0.00038932,10]
[393995180,1763169044255,-5888.0,0.00038932,10]
[393995181,1763169044264,-5888.0,0.00038932,10]
[393995182,1763169044277,-5584.52478366,0.00038932,10]
[393995183,1763169044288,-366.0,0.00038942,120]
[393995184,1763169044297,-500.0,0.00038956,30]
[393995185,1763169044307,-150.0,0.00038956,10]
[393995186,1763169044316,-172.39,0.00038994,120]
[393995187,1763169044326,-333.941597,0.00039092,2]
[393995188,1763169044335,-172.39,0.00039094,120]
[393995189,1763169044344,-500.0,0.00039178,30]
[393995190,1763169044353,-172.39,0.00039194,120]
[393995191,1763169044362,-172.39,0.00039294,120]
[393995192,1763169044372,-172.39,0.00039394,120]
[393995193,1763169044381,-151.0,0.00039404,120]
[393995194,1763169044390,-151.0,0.00039404,120]
[393995195,1763169044399,-151.0,0.00039404,120]
[393995196,1763169044408,-275.998086,0.00039404,120]
[393995197,1763169044418,-151.0,0.00039404,120]
[393995198,1763169044427,-151.0,0.00039404,120]
[393995199,1763169044435,-500.0,0.00039452,30]
[393995200,1763169044444,-172.39,0.00039494,120]
[393995201,1763169044453,-172.39,0.00039594,120]
[393995202,1763169044462,-192.03659602,0.000396,120]
[393995203,1763169044471,-303.57153172,0.000396,120]
[393995204,1763169044480,-183.27797614,0.000396,120]
[393995205,1763169044489,-171.34017661,0.000396,120]
[393995206,1763169044498,-160.28857289,0.000396,120]
[393995207,1763169044507,-163.81651222,0.000396,120]
[393995208,1763169044516,-1372.88107901,0.000396,120]
[393995209,1763169044526,-176.25505289,0.000396,120]
[393995210,1763169044535,-177.4206029,0.000396,120]
[393995211,1763169044544,-197.55653637,0.000396,120]
[393995212,1763169044553,-163.42950571,0.000396,120]
[393995213,1763169044562,-161.5606258,0.000396,120]
[393995214,1763169044571,-307.2972228,0.000396,120]
[393995215,1763169044580,-183.90945505,0.000396,120]
[393995216,1763169044590,-453.738808,0.00039654,2]
[393995217,1763169044599,-172.39,0.00039694,120]
[393995218,1763169044608,-159.0,0.000397,120]
[393995219,1763169044618,-151.0,0.00039726,120]
[393995220,1763169044627,-151.0,0.00039726,120]
[393995221,1763169044636,-294.899948,0.00039726,120]
[393995222,1763169044645,-187.765429,0.00039726,7]
[393995223,1763169044654,-187.765429,0.00039726,7]
[393995224,1763169044664,-187.765429,0.00039726,7]
[393995225,1763169044673,-187.765429,0.00039726,7]
[393995226,1763169044682,-151.0,0.00039726,120]
[393995227,1763169044691,-151.0,0.00039726,2]
[393995228,1763169044700,-151.0,0.00039726,120]
[393995229,1763169044710,-151.0,0.00039726,120]
[393995230,1763169044719,-210.552424,0.00039726,120]
[393995231,1763169044728,-154.503828,0.00039726,120]
[393995232,1763169044738,-151.0,0.00039726,120]
[393995233,1763169044747,-151.0,0.00039726,120]
[393995234,1763169044757,-151.0,0.00039726,120]
[393995235,1763169044766,-226.675851,0.00039726,120]
[393995236,1763169044775,-531.375781,0.00039726,120]
[393995237,1763169044784,-531.375781,0.00039726,120]
[393995238,1763169044794,-151.0,0.00039726,120]
[393995239,1763169044803,-531.375781,0.00039726,120]
[393995240,1763169044812,-469.977544,0.00039726,120]
[393995241,1763169044822,-151.0,0.00039726,120]
[393995242,1763169044831,-469.977544,0.00039726,120]
[393995243,1763169044840,-531.375781,0.00039726,120]
[393995244,1763169044849,-151.0,0.00039726,120]
[393995245,1763169044859,-469.977544,0.00039726,120]
[393995246,1763169044868,-469.977544,0.00039726,120]
[393995247,1763169044878,-151.0,0.00039726,120]
[393995248,1763169044887,-2868.729598,0.00039726,120]
[393995249,1763169044896,-2868.729598,0.00039726,120]
[393995250,1763169044906,-2868.729598,0.00039726,120]
[393995251,1763169044917,-2868.729598,0.00039726,120]
[393995252,1763169044926,-151.0,0.00039726,120]
[393995253,1763169044936,-1253.127483,0.00039726,120]
[393995254,1763169044946,-151.0,0.00039726,120]
[393995255,1763169044956,-1253.127483,0.00039726,120]
[393995256,1763169044965,-151.0,0.00039726,120]
[393995257,1763169044975,-151.0,0.00039726,120]
[393995258,1763169044984,-500.0,0.00039726,30]
[393995259,1763169044993,-172.39,0.00039794,120]
[393995260,1763169045002,-1460.15806665,0.00039854,2]
[393995261,1763169045011,-220.335232,0.00039854,120]
[393995262,1763169045020,-151.0,0.00039854,120]
[393995263,1763169045031,-151.0,0.00039854,120]
[393995264,1763169045041,-151.0,0.00039854,120]
[393995265,1763169045050,-151.0,0.00039854,120]
[393995266,1763169045059,-151.0,0.00039854,120]
[393995267,1763169045068,-151.0,0.00039854,120]
[393995268,1763169045077,-172.39,0.00039894,120]
[393995269,1763169045087,-172.39,0.00039994,120]
[393995270,1763169045095,-500.0,0.0004,30]
[393995271,1763169045104,-172.39,0.00040094,120]
[393995272,1763169045114,-172.39,0.00040194,120]
[393995273,1763169045124,-500.0,0.00040274,30]
[393995274,1763169045134,-151.0,0.00040274,120]
[393995275,1763169045144,-266.601798,0.00040274,120]
[393995276,1763169045153,-151.0,0.00040274,120]
[393995277,1763169045162,-163.149535,0.00040274,120]
[393995278,1763169045172,-151.0,0.00040274,120]
[393995279,1763169045181,-486.910272,0.00040274,2]
[393995280,1763169045190,-486.910272,0.00040274,2]
[393995281,1763169045199,-486.910272,0.00040274,2]
[393995282,1763169045211,-152.861274,0.00040274,120]
[393995283,1763169045220,-486.910272,0.00040274,2]
[393995284,1763169045229,-151.0,0.00040274,120]
[393995285,1763169045239,-151.0,0.00040274,120]
[393995286,1763169045250,-151.0,0.00040274,120]
[393995287,1763169045259,-151.0,0.00040274,120]
[393995288,1763169045268,-172.39,0.00040294,120]
[393995289,1763169045280,-172.39,0.00040394,120]
[393995290,1763169045291,-172.39,0.00040494,120]
[393995291,1763169045300,-150.0,0.00040542,2]
[393995292,1763169045309,-2148.0,0.00040542,2]
[393995293,1763169045318,-629.0,0.00040542,2]
[393995294,1763169045327,-987.0,0.00040542,2]
[393995295,1763169045336,-500.0,0.00040548,30]
[393995296,1763169045346,-169.319794,0.00040548,120]
[393995297,1763169045355,-196.781899,0.00040548,120]
[393995298,1763169045364,-196.781899,0.00040548,120]
[393995299,1763169045373,-196.781899,0.00040548,120]
[393995300,1763169045383,-196.781899,0.00040548,120]
[393995301,1763169045391,-151.0,0.00040548,120]
[393995302,1763169045401,-151.0,0.00040548,120]
[393995303,1763169045410,-355.35191,0.00040548,120]
[393995304,1763169045419,-355.35191,0.00040548,120]
[393995305,1763169045428,-355.35191,0.00040548,120]
[393995306,1763169045437,-355.35191,0.00040548,120]
[393995307,1763169045447,-151.0,0.00040548,120]
[393995308,1763169045456,-151.0,0.00040548,120]
[393995309,1763169045464,-151.0,0.00040548,120]
[393995310,1763169045473,-151.0,0.00040548,120]
[393995311,1763169045483,-151.0,0.00040573,15]
[393995312,1763169045491,-151.0,0.00040573,120]
[393995313,1763169045501,-151.0,0.00040573,120]
[393995314,1763169045510,-154.271945,0.00040573,120]
[393995315,1763169045519,-151.0,0.00040573,120]
[393995316,1763169045528,-455.418,0.00040573,120]
[393995317,1763169045537,-455.418,0.00040573,120]
[393995318,1763169045547,-455.418,0.00040573,120]
[393995319,1763169045555,-455.418,0.00040573,120]
[393995320,1763169045564,-151.0,0.00040573,120]
[393995321,1763169045573,-172.405905,0.00040573,120]
[393995322,1763169045582,-172.405905,0.00040573,120]
[393995323,1763169045591,-172.405905,0.00040573,120]
[393995324,1763169045600,-172.405905,0.00040573,120]
[393995325,1763169045609,-357.151608,0.00040573,120]
[393995326,1763169045618,-357.151608,0.00040573,120]
[393995327,1763169045627,-357.151608,0.00040573,120]
[393995328,1763169045636,-357.151608,0.00040573,120]
[393995329,1763169045645,-172.39,0.00040594,120]
[393995330,1763169045654,-3031.16,0.000406,14]
[393995331,1763169045664,-333.941597,0.000406,30]
[393995332,1763169045673,-172.39,0.00040694,120]
[393995333,1763169045682,-172.39,0.00040794,120]
[393995334,1763169045691,-192.03659602,0.000408,120]
[393995335,1763169045701,-171.34017661,0.000408,120]
[393995336,1763169045709,-163.81651222,0.000408,120]
[393995337,1763169045718,-177.4206029,0.000408,120]
[393995338,1763169045727,-197.55653637,0.000408,120]
[393995339,1763169045737,-1372.88107901,0.000408,120]
[393995340,1763169045746,-163.42950571,0.000408,120]
[393995341,1763169045755,-183.90945505,0.000408,120]
[393995342,1763169045764,-151.0,0.000408,120]
[393995343,1763169045773,-152.828512,0.000408,120]
[393995344,1763169045782,-151.0,0.000408,120]
[393995345,1763169045792,-151.0,0.000408,120]
[393995346,1763169045801,-230.818372,0.000408,120]
[393995347,1763169045811,-151.0,0.000408,120]
[393995348,1763169045820,-500.0,0.00040822,30]
[393995349,1763169045828,-172.39,0.00040894,120]
[393995350,1763169045837,-333.941597,0.00040928,30]
[393995351,1763169045846,-5000.0,0.00040932,4]
[393995352,1763169045855,-393.0,0.00040942,120]
[393995353,1763169045864,-172.39,0.00040994,120]
[393995354,1763169045874,-172.39,0.00041094,120]
[393995355,1763169045883,-999.0,0.00041095,120]
[393995356,1763169045891,-500.0,0.00041096,30]
[393995357,1763169045900,-183.28906831,0.00041096,2]
[393995358,1763169045909,-172.39,0.00041194,120]
[393995359,1763169045919,-333.941597,0.00041255,30]
[393995360,1763169045928,-172.39,0.00041294,120]
[393995361,1763169045937,-500.0,0.0004137,120]
[393995362,1763169045946,-172.39,0.00041394,120]
[393995363,1763169045955,-171.76544108,0.00041405,10]
[393995364,1763169045964,-172.39,0.00041494,120]
[393995365,1763169045973,-412.46483272,0.0004155,2]
[393995366,1763169045982,-738.42275021,0.0004155,2]
[393995367,1763169045991,-648.39482609,0.0004155,2]
[393995368,1763169046001,-350.0,0.00041564,10]
[393995369,1763169046010,-333.941597,0.00041582,30]
[393995370,1763169046019,-172.39,0.00041594,120]
[393995371,1763169046029,-500.0,0.00041644,120]
[393995372,1763169046038,-172.39,0.00041694,120]
[393995373,1763169046047,-1000.0,0.00041715,14]
[393995374,1763169046056,-762.0,0.00041715,14]
[393995375,1763169046065,-343.54117586,0.00041754,2]
[393995376,1763169046075,-618.37411654,0.00041754,2]
[393995377,1763169046084,-1099.33176274,0.00041754,2]
[393995378,1763169046093,-345.73093569,0.00041754,2]
[393995380,1763169046102,-622.31568425,0.00041754,2]
[393995381,1763169046111,-1106.33899422,0.00041754,2]
[393995382,1763169046120,-321.82590605,0.00041754,2]
[393995383,1763169046130,-367.80103549,0.00041754,2]
[393995384,1763169046139,-169.96751199,0.00041754,2]
[393995385,1763169046148,-305.94152158,0.00041754,2]
[393995386,1763169046158,-496.76772064,0.00041754,2]
[393995387,1763169046167,-894.18189715,0.00041754,2]
[393995388,1763169046176,-184.18526435,0.00041754,2]
[393995389,1763169046185,-736.74105741,0.00041754,2]
[393995390,1763169046195,-1657.66737917,0.00041754,2]
[393995391,1763169046204,-172.39,0.00041794,120]
[393995392,1763169046219,-1000.0,0.00041852,14]
[393995393,1763169046229,-172.39,0.00041894,120]
[393995394,1763169046240,-158.669288,0.0004191,30]
[393995395,1763169046250,-333.941597,0.0004191,30]
[393995396,1763169046260,-500.0,0.00041918,120]
[393995397,1763169046269,-1000.0,0.00041989,14]
[393995398,1763169046279,-172.39,0.00041994,120]
[393995399,1763169046291,-192.03659602,0.00042,120]
[393995400,1763169046300,-1372.88107901,0.00042,120]
[393995401,1763169046309,-183.90945505,0.00042,120]
[393995402,1763169046318,-2000.0,0.00042,21]
[393995403,1763169046328,-203.0,0.00042,120]
[393995404,1763169046337,-172.39,0.00042094,120]
[393995405,1763169046346,-1460.15806665,0.00042116,2]
[393995406,1763169046356,-179.71246006,0.00042121,26]
[393995407,1763169046365,-500.0,0.00042192,120]
[393995408,1763169046374,-172.39,0.00042194,120]
[393995409,1763169046383,-333.941597,0.000422,120]
[393995410,1763169046392,-172.39,0.00042294,120]
[393995411,1763169046401,-172.39,0.00042394,120]
[393995412,1763169046410,-500.0,0.00042466,120]
[393995413,1763169046419,-172.39,0.00042494,120]
[393995414,1763169046428,-172.39,0.00042594,120]
[393995415,1763169046437,-205.49,0.00042594,15]
[393995416,1763169046446,-172.39,0.00042694,120]
[393995417,1763169046457,-500.0,0.0004274,120]
[393995418,1763169046466,-172.39,0.00042794,120]
[393995420,1763169046475,-172.39,0.00042894,120]
[393995421,1763169046484,-3031.16,0.000429,14]
[393995423,1763169046494,-420.0,0.00042942,120]
[393995424,1763169046503,-172.39,0.00042994,120]
[393995425,1763169046512,-200.0,0.00043,120]
[393995426,1763169046521,-500.0,0.00043014,120]
[393995427,1763169046531,-333.941597,0.00043089,10]
[393995429,1763169046540,-172.39,0.00043094,120]
[393995430,1763169046549,-172.39,0.00043194,120]
[393995431,1763169046558,-500.0,0.00043288,120]
[393995432,1763169046566,-172.39,0.00043294,120]
[393995433,1763169046575,-192.03659602,0.000433,120]
[393995434,1763169046584,-1372.88107901,0.000433,120]
[393995435,1763169046593,-172.39,0.00043394,120]
[393995436,1763169046602,-172.39,0.00043494,120]
[393995437,1763169046611,-500.0,0.000435,120]
[393995438,1763169046621,-2148.0,0.00043542,2]
[393995439,1763169046629,-629.0,0.00043542,2]
[393995440,1763169046639,-987.0,0.00043542,2]
[393995441,1763169046648,-151.0,0.00043542,120]
[393995442,1763169046656,-170.399718,0.00043542,120]
[393995443,1763169046666,-500.0,0.00043562,120]
[393995444,1763169046675,-702.75847632,0.00043562,120]
[393995445,1763169046684,-172.39,0.00043594,120]
[393995446,1763169046693,-172.39,0.00043694,120]
[393995447,1763169046702,-333.941597,0.00043774,120]
[393995448,1763169046711,-172.39,0.00043794,120]
[393995449,1763169046720,-1000.0,0.000438,90]
[393995450,1763169046729,-999.0,0.00043835,120]
[393995451,1763169046739,-500.0,0.00043836,120]
[393995452,1763169046748,-270.45837137,0.00043836,120]
[393995453,1763169046757,-172.39,0.00043894,120]
[393995454,1763169046766,-172.39,0.00043994,120]
[393995455,1763169046776,-500.0,0.00044,120]
[393995456,1763169046784,-172.39,0.00044094,120]
[393995457,1763169046794,-390.62,0.00044109,14]
[393995458,1763169046803,-500.0,0.0004411,120]
[393995459,1763169046812,-172.39,0.00044194,120]
[393995460,1763169046822,-172.39,0.00044294,120]
[393995461,1763169046831,-159.0,0.000443,120]
[393995462,1763169046840,-1460.15806665,0.00044377,2]
[393995463,1763169046849,-500.0,0.00044384,120]
[393995464,1763169046858,-172.39,0.00044394,120]
[393995465,1763169046867,-172.39,0.00044494,120]
[393995466,1763169046877,-500.0,0.000445,120]
[393995467,1763169046886,-172.39,0.00044594,120]
[393995468,1763169046895,-192.03659602,0.000446,120]
[393995469,1763169046905,-1372.88107901,0.000446,120]
[393995470,1763169046914,-500.0,0.00044658,120]
[393995471,1763169046923,-172.39,0.00044694,120]
[393995472,1763169046933,-4408.0,0.00044781,120]
[393995473,1763169046942,-172.39,0.00044794,120]
[393995474,1763169046951,-172.39,0.00044894,120]
[393995475,1763169046960,-447.0,0.00044942,120]
[393995476,1763169046969,-172.39,0.00044994,120]
[393995477,1763169046978,-500.0,0.00045,120]
[393995478,1763169046987,-203.139,0.00045,120]